bitfinex-derivatives/quotes_BTCF0:USTF0_20250811
["timestamp","ask_amount","ask_price","bid_price","bid_amount"]
[1754910417052,1.58066255,121000.0,120990.0,0.36159316]
[1754910417960,1.58066255,121000.0,120990.0,0.36359316]
[1754910418156,1.58076255,121000.0,120990.0,0.12625067]
[1754910420563,0.443554,121000.0,120990.0,0.39140067]
[1754910420764,1.233154,121000.0,120990.0,0.38940067]
[1754910420957,1.234154,121000.0,120990.0,0.39240067]
[1754910421265,1.233834,121000.0,120990.0,0.91257381]
[1754910421562,0.79042,121000.0,120990.0,0.99523461]
[1754910421760,0.0011,121000.0,120990.0,1.35603461]
[1754910422062,0.79038,121000.0,120990.0,1.35603461]
[1754910422766,0.873034,121000.0,120990.0,0.91257381]
[1754910422958,0.872834,121000.0,120990.0,0.56592526]
[1754910423153,0.083754,121000.0,120990.0,0.56592526]
[1754910423553,0.872754,121000.0,120990.0,0.56592526]
[1754910423764,0.083754,121000.0,120990.0,0.56592526]
[1754910423965,0.872554,121000.0,120990.0,0.56592526]
[1754910425068,0.872554,121000.0,120990.0,1.00938606]
[1754910425669,0.872114,121000.0,120990.0,1.35603461]
[1754910425968,0.872154,121000.0,120990.0,1.35603461]
[1754910426168,0.871994,121000.0,120990.0,1.35603461]
[1754910426966,0.871994,121000.0,120990.0,1.54869299]
[1754910427271,0.871994,121000.0,120990.0,1.20204444]
[1754910427463,0.871994,121000.0,120990.0,1.54869299]
[1754910427661,0.871994,121000.0,120990.0,1.20204444]
[1754910428664,0.874284,121000.0,120990.0,1.20204444]
[1754910428864,0.877944,121000.0,120990.0,1.20204444]
[1754910429568,0.877944,121000.0,120990.0,1.35603461]
[1754910429767,0.877944,121000.0,120990.0,0.92672526]
[1754910429963,0.877944,121000.0,120990.0,1.00938606]
[1754910430170,0.875974,121000.0,120990.0,1.00938606]
[1754910430471,0.874284,121000.0,120990.0,1.24682855]
[1754910430867,0.873224,121000.0,120990.0,1.24682855]
[1754910432279,0.873224,121000.0,120990.0,1.00938606]
[1754910433268,0.873224,121000.0,120990.0,0.56592526]
[1754910433477,0.873224,121000.0,120990.0,0.64858606]
[1754910433672,0.873224,121000.0,120990.0,1.00938606]
[1754910434372,0.873224,121000.0,120990.0,1.5934771]
[1754910434674,0.873224,121000.0,120990.0,1.16416775]
[1754910435170,0.873224,121000.0,120990.0,1.24682865]
[1754910435674,0.871544,121000.0,120990.0,0.69677775]
[1754910435869,0.084984,121000.0,120990.0,0.69677775]
[1754910436170,0.870194,121000.0,120990.0,0.53821775]
[1754910436372,0.870194,121000.0,120990.0,0.30077526]
[1754910437376,0.870194,121000.0,120990.0,0.38343616]
[1754910437377,0.869794,121000.0,120990.0,0.38343616]
[1754910437673,0.869834,121000.0,120990.0,0.38343616]
[1754910438065,0.874704,121000.0,120990.0,0.64656616]
[1754910438567,0.78718,121000.0,120990.0,1.35401471]
[1754910438773,0.0011,121000.0,120990.0,1.86595926]
[1754910438965,0.14853517,121030.0,121020.0,0.0826404]
[1754910439170,0.14853517,121030.0,121020.0,0.69125895]
[1754910439171,0.14797517,121030.0,121020.0,0.69125895]
[1754910439370,0.93365517,121030.0,121020.0,0.90354204]
[1754910439573,0.93421517,121030.0,121020.0,0.98616959]
[1754910439976,0.93417517,121030.0,121020.0,0.90352919]
[1754910440275,0.93719517,121030.0,121020.0,1.17912685]
[1754910440468,0.15163517,121030.0,121020.0,1.17912685]
[1754910440664,0.15463517,121030.0,121020.0,1.17912685]
[1754910440872,0.93991517,121030.0,121020.0,1.17912685]
[1754910441072,0.93991517,121030.0,121020.0,1.09648645]
[1754910441274,0.94186517,121030.0,121020.0,1.09648645]
[1754910441571,0.15658517,121030.0,121020.0,0.6420379]
[1754910441776,0.15458517,121030.0,121020.0,0.5366079]
[1754910442271,0.93950517,121030.0,121020.0,0.5366079]
[1754910442477,0.93650517,121030.0,121020.0,0.5366079]
[1754910442674,0.93850517,121030.0,121020.0,0.8324782]
[1754910442881,0.93842517,121030.0,121020.0,0.63962094]
[1754910443186,0.93603517,121030.0,121020.0,0.98626949]
[1754910443573,0.15107517,121030.0,121020.0,0.55698064]
[1754910443876,0.15358517,121030.0,121020.0,0.55698064]
[1754910444077,0.93846517,121030.0,121020.0,0.55698064]
[1754910444281,0.93838517,121030.0,121020.0,0.55698064]
[1754910444776,0.15358517,121030.0,121020.0,0.55698064]
[1754910444977,0.93834517,121030.0,121020.0,0.55698064]
[1754910445574,0.93834517,121030.0,121020.0,0.44918064]
[1754910445778,1.29914517,121030.0,121020.0,0.50682064]
[1754910446073,1.29914517,121030.0,121020.0,0.69957564]
[1754910446477,1.29914517,121030.0,121020.0,0.74973564]
[1754910446872,0.93834517,121030.0,121020.0,0.74973564]
[1754910447279,0.93834517,121030.0,121020.0,0.55698064]
[1754910447479,0.93774517,121030.0,121020.0,0.55698064]
[1754910447881,1.29854517,121030.0,121020.0,0.44918064]
[1754910448177,0.51438517,121030.0,121020.0,0.44918064]
[1754910448376,0.93794517,121030.0,121020.0,0.55698064]
[1754910448580,0.15302517,121030.0,121020.0,0.50682064]
[1754910448772,0.93806517,121030.0,121020.0,0.55698064]
[1754910449476,0.93806517,121030.0,121020.0,0.63962144]
[1754910449667,0.93555517,121030.0,121020.0,0.63962144]
[1754910449870,0.93490517,121030.0,121020.0,0.63962144]
[1754910450070,0.93490517,121030.0,121020.0,0.90362919]
[1754910450274,0.93490517,121030.0,121020.0,0.55698064]
[1754910450275,0.93806517,121030.0,121020.0,0.55698064]
[1754910450474,0.93778517,121030.0,121020.0,0.55698064]
[1754910450875,0.93673517,121030.0,121020.0,0.55698064]
[1754910451275,0.93778517,121030.0,121020.0,0.55698064]
[1754910451686,0.15358517,121030.0,121020.0,0.70536104]
[1754910451983,0.93734517,121030.0,121020.0,0.70536104]
[1754910453281,0.15358517,121030.0,121020.0,0.78800184]
[1754910453482,0.93702517,121030.0,121020.0,0.78800184]
[1754910453676,0.93702517,121030.0,121020.0,0.70536104]
[1754910453984,0.93694517,121030.0,121020.0,0.70536104]
[1754910455082,0.93674517,121030.0,121020.0,0.70536104]
[1754910455983,0.93674517,121030.0,121020.0,0.78800184]
[1754910456281,0.93358517,121030.0,121020.0,1.05200959]
[1754910456480,0.93358517,121030.0,121020.0,0.70536104]
[1754910456686,0.93358517,121030.0,121020.0,0.78800184]
[1754910457182,0.06843947,121030.0,121020.0,0.78800184]
[1754910457481,0.06778947,121030.0,121020.0,1.34706999]
[1754910458374,0.2478754,121050.0,121030.0,0.1652576]
[1754910458583,0.9486883,121050.0,121040.0,0.69124575]
[1754910458883,0.2484997,121060.0,121050.0,0.0826204]
[1754910459078,0.78344,121060.0,121050.0,1.05203895]
[1754910459276,0.94854,121070.0,121060.0,0.0826135]
[1754910459584,0.94867177,121070.0,121060.0,1.26300201]
[1754910460083,0.94867177,121070.0,121060.0,1.34560908]
[1754910460379,1.01417991,121070.0,121060.0,1.34560908]
[1754910460579,1.01397991,121070.0,121060.0,1.22225157]
[1754910460886,1.03241991,121070.0,121060.0,1.58305157]
[1754910461786,0.94968731,121070.0,121060.0,1.58305157]
[1754910462284,0.16684731,121070.0,121060.0,1.58305157]
[1754910462480,0.94920731,121070.0,121060.0,1.58305157]
[1754910462886,0.16784731,121070.0,121060.0,1.58305157]
[1754910463083,0.95008731,121070.0,121060.0,1.58305157]
[1754910464286,0.95008731,121070.0,121060.0,1.77530177]
[1754910464689,0.95008731,121070.0,121060.0,1.53785928]
[1754910464890,0.93164731,121070.0,121060.0,1.53785928]
[1754910465282,0.06679991,121070.0,121060.0,1.53785928]
[1754910465482,0.84835991,121070.0,121060.0,1.53785928]
[1754910465684,0.93096661,121070.0,121060.0,1.53785928]
[1754910465884,0.14940661,121070.0,121060.0,1.53785928]
[1754910466183,0.94912661,121070.0,121060.0,1.53785928]
[1754910466383,0.94968661,121070.0,121060.0,1.53785928]
[1754910466688,2.56037661,121070.0,121060.0,1.19121073]
[1754910466886,2.92145661,121070.0,121060.0,0.53456723]
[1754910467090,2.92045661,121070.0,121060.0,0.48582723]
[1754910467291,2.13889661,121070.0,121060.0,0.48582723]
[1754910467591,2.92053661,121070.0,121060.0,0.48582723]
[1754910467789,2.48554516,121070.0,121060.0,0.6336976]
[1754910468090,2.48554516,121070.0,121060.0,0.6346976]
[1754910468091,2.92041661,121070.0,121060.0,0.6346976]
[1754910468292,2.92033661,121070.0,121060.0,0.6346976]
[1754910468491,2.13889661,121070.0,121060.0,0.6346976]
[1754910468692,2.92041661,121070.0,121060.0,0.6346976]
[1754910468888,2.13889661,121070.0,121060.0,0.5250613]
[1754910469082,2.51018691,121070.0,121060.0,1.13478985]
[1754910469489,2.42757991,121070.0,121060.0,0.98691948]
[1754910469790,1.56579991,121070.0,121060.0,1.49560198]
[1754910470189,1.56579991,121070.0,121060.0,2.27692198]
[1754910470388,1.56579991,121070.0,121060.0,1.49560198]
[1754910470598,1.56579991,121070.0,121060.0,1.78255093]
[1754910470789,0.06579991,121070.0,121060.0,2.36664197]
[1754910471797,0.06579991,121070.0,121060.0,1.58516197]
[1754910472098,0.06579991,121070.0,121060.0,2.53184196]
[1754910472297,0.06579991,121070.0,121060.0,2.53144196]
[1754910472597,0.06579991,121070.0,121060.0,2.53136196]
[1754910473303,0.06579991,121070.0,121060.0,2.53128196]
[1754910473507,1.5,121090.0,121080.0,0.0826002]
[1754910473705,1.5,121090.0,121080.0,1.05002875]
[1754910473706,1.0,121090.0,121080.0,1.05002875]
[1754910473898,1.0,121090.0,121080.0,1.26150255]
[1754910474097,1.0,121090.0,121080.0,1.3441028]
[1754910474498,1.08268923,121090.0,121080.0,1.3441028]
[1754910474793,1.08278923,121090.0,121080.0,2.1250028]
[1754910475205,1.08278923,121090.0,121080.0,2.4858028]
[1754910475502,1.00019583,121090.0,121080.0,2.67777392]
[1754910476704,1.00019583,121090.0,121080.0,2.4858028]
[1754910477500,1.00019583,121090.0,121080.0,2.4851228]
[1754910477501,0.00019583,121090.0,121080.0,2.4851228]
[1754910477705,0.00019583,121090.0,121080.0,2.67704142]
[1754910477901,0.00019583,121090.0,121080.0,2.67672142]
[1754910478406,0.06496074,121090.0,121080.0,2.67672142]
[1754910480005,0.06496074,121090.0,121080.0,2.67632142]
[1754910480306,0.14755414,121090.0,121080.0,2.67632142]
[1754910480806,0.20500414,121090.0,121080.0,2.67632142]
[1754910481013,0.06496074,121090.0,121080.0,2.67632142]
[1754910481804,0.20500414,121090.0,121080.0,2.67632142]
[1754910482108,0.12241074,121090.0,121080.0,2.67632142]
[1754910482508,0.20500414,121090.0,121080.0,2.67632142]
[1754910483010,0.12241074,121090.0,121080.0,2.67632142]
[1754910483707,0.14755414,121090.0,121080.0,2.67632142]
[1754910483907,0.20500414,121090.0,121080.0,2.67632142]
[1754910484102,0.12241074,121090.0,121080.0,2.67632142]
[1754910484405,0.06496074,121090.0,121080.0,2.67632142]
[1754910486111,0.06496074,121090.0,121080.0,1.89692142]
[1754910486506,0.20500414,121090.0,121080.0,1.89692142]
[1754910486710,0.20832414,121090.0,121080.0,1.89692142]
[1754910486912,0.27842414,121090.0,121080.0,1.89692142]
[1754910487210,1.05301414,121090.0,121080.0,1.24827425]
[1754910487413,1.11046414,121090.0,121080.0,1.24827425]
[1754910487709,1.11046414,121090.0,121080.0,1.7050028]
[1754910488010,1.02787074,121090.0,121080.0,1.7050028]
[1754910488308,1.02799074,121090.0,121080.0,1.7050028]
[1754910488509,1.11058414,121090.0,121080.0,1.7050028]
[1754910488707,1.02799074,121090.0,121080.0,1.7050028]
[1754910488907,0.24903074,121090.0,121080.0,1.7050028]
[1754910489107,0.20114074,121090.0,121080.0,2.4840428]
[1754910490004,0.06496074,121090.0,121080.0,2.4840428]
[1754910491416,0.06496074,121090.0,121080.0,1.7050028]
[1754910492011,0.06496074,121090.0,121080.0,2.4836428]
[1754910492407,0.8612202,121110.0,121100.0,0.0825866]
[1754910492408,0.77864,121110.0,121100.0,0.0825866]
[1754910492602,0.77864,121110.0,121100.0,0.68921515]
[1754910492803,0.77864,121110.0,121100.0,0.9043508]
[1754910493210,0.9185498,121110.0,121100.0,1.59549271]
[1754910493508,0.91862971,121110.0,121100.0,1.59549271]
[1754910493708,0.91872971,121110.0,121100.0,1.59559271]
[1754910494313,0.83614991,121110.0,121100.0,1.78816402]
[1754910494509,0.91872971,121110.0,121100.0,1.78816402]
[1754910494704,0.83614991,121110.0,121100.0,1.78816402]
[1754910495108,0.83814991,121110.0,121100.0,1.78816402]
[1754910495313,0.05962991,121110.0,121100.0,1.78816402]
[1754910495516,0.83778991,121110.0,121100.0,1.78816402]
[1754910496016,0.92036971,121110.0,121100.0,1.78816402]
[1754910496613,0.14220971,121110.0,121100.0,1.78816402]
[1754910496814,0.92032971,121110.0,121100.0,1.78816402]
[1754910497010,1.07367971,121110.0,121100.0,1.42736402]
[1754910497215,1.12177971,121110.0,121100.0,1.08071547]
[1754910497610,1.18644158,121110.0,121100.0,1.07840547]
[1754910498615,1.18612158,121110.0,121100.0,1.43920547]
[1754910498808,1.18612158,121110.0,121100.0,1.78585402]
[1754910499318,1.18612158,121110.0,121100.0,0.88583416]
[1754910500322,1.18612158,121110.0,121100.0,1.07855024]
[1754910500719,1.18612158,121110.0,121100.0,1.43935024]
[1754910500922,1.08353158,121110.0,121100.0,1.33702024]
[1754910501822,1.08353158,121110.0,121100.0,1.68366879]
[1754910503423,1.08353158,121110.0,121100.0,1.33702024]
[1754910503726,1.08353158,121110.0,121100.0,1.68366879]
[1754910504125,1.08353158,121110.0,121100.0,1.49095271]
[1754910504627,1.08349158,121110.0,121100.0,1.49095271]
[1754910505023,1.08349158,121110.0,121100.0,1.7283952]
[1754910505226,0.98463158,121110.0,121100.0,1.7283952]
[1754910505720,1.14115158,121110.0,121100.0,1.7283952]
[1754910506327,1.14115158,121110.0,121100.0,1.38174665]
[1754910506629,1.14115158,121110.0,121100.0,1.7283952]
[1754910506828,0.06684178,121110.0,121100.0,1.87683221]
[1754910507026,0.84456178,121110.0,121100.0,1.63938972]
[1754910507226,2.34456178,121110.0,121100.0,1.63938972]
[1754910507618,2.34456178,121110.0,121100.0,1.49095271]
[1754910507822,1.56684178,121110.0,121100.0,1.49095271]
[1754910508025,2.34356178,121110.0,121100.0,1.68392083]
[1754910508231,2.42514158,121110.0,121100.0,1.63275643]
[1754910508423,2.48259158,121110.0,121100.0,1.63275643]
[1754910508619,2.48259158,121110.0,121100.0,0.49179038]
[1754910508620,2.41021573,121110.0,121100.0,0.49179038]
[1754910508920,2.45831573,121110.0,121100.0,0.64018099]
[1754910509123,2.45831573,121110.0,121080.0,0.94446345]
[1754910509124,0.0825934,121090.0,121080.0,0.0499]
[1754910509325,0.0826002,121080.0,121070.0,0.28636611]
[1754910509530,0.82112435,121080.0,121070.0,0.23745611]
[1754910509721,1.59880435,121080.0,121070.0,0.44444094]
[1754910509919,0.82112435,121080.0,121070.0,0.44444094]
[1754910510124,0.82112435,121080.0,121070.0,0.49335094]
[1754910510125,1.59880435,121080.0,121070.0,0.49335094]
[1754910510320,1.59890435,121080.0,121070.0,0.49345094]
[1754910510728,0.1659402,121080.0,121070.0,0.56281094]
[1754910510926,0.9436202,121080.0,121070.0,0.70404094]
[1754910511128,0.1659402,121080.0,121070.0,0.71128898]
[1754910511329,0.1158802,121080.0,121070.0,0.85457898]
[1754910511628,0.86102,121080.0,121070.0,0.93718608]
[1754910511830,0.77786,121080.0,121070.0,1.4462627]
[1754910512230,0.8604602,121080.0,121070.0,1.49709905]
[1754910512538,0.1659402,121080.0,121070.0,0.96140145]
[1754910512837,1.3045002,121080.0,121070.0,0.49775206]
[1754910513828,1.6498207,121080.0,121070.0,0.44884206]
[1754910514034,1.6498207,121080.0,121070.0,0.35533206]
[1754910514230,1.6498207,121080.0,121070.0,0.40424206]
[1754910514439,1.3045002,121080.0,121070.0,0.25699483]
[1754910514925,1.3045002,121080.0,121070.0,0.25599483]
[1754910515339,1.6498207,121080.0,121070.0,0.44857495]
[1754910515537,1.6498207,121080.0,121070.0,0.39966495]
[1754910516637,0.8720607,121080.0,121070.0,0.39961972]
[1754910516836,1.8150447,121080.0,121070.0,0.31704675]
[1754910517037,1.8650447,121080.0,121070.0,0.25952675]
[1754910517838,1.8650447,121080.0,121070.0,0.06699186]
[1754910519335,1.0372447,121080.0,121070.0,0.25927834]
[1754910519538,1.4697642,121080.0,121070.0,0.30818834]
[1754910519739,1.3045802,121080.0,121070.0,0.30818834]
[1754910520139,1.6499007,121080.0,121070.0,0.30818834]
[1754910521535,1.3045802,121080.0,121070.0,0.30818834]
[1754910521838,1.3046202,121080.0,121070.0,0.36617834]
[1754910522141,1.3046202,121080.0,121070.0,0.30818834]
[1754910522338,1.6499407,121080.0,121070.0,0.30818834]
[1754910522542,1.3046202,121080.0,121070.0,0.30818834]
[1754910522743,0.5267402,121080.0,121070.0,0.11590186]
[1754910523047,1.3046202,121080.0,121070.0,0.40908529]
[1754910523344,0.5267402,121080.0,121070.0,0.40908529]
[1754910523542,1.3046202,121080.0,121070.0,0.40908529]
[1754910523937,1.3046202,121080.0,121070.0,0.50309149]
[1754910524338,1.3054802,121080.0,121070.0,0.50309149]
[1754910524645,0.9446802,121080.0,121070.0,0.50309149]
[1754910524841,0.9460502,121080.0,121070.0,0.50309149]
[1754910525541,0.0827002,121080.0,121070.0,1.0405111]
[1754910525839,0.0001,121080.0,121070.0,1.27088585]
[1754910526045,0.8614402,121080.0,121070.0,1.18827875]
[1754910526241,0.8614402,121080.0,121070.0,0.84295825]
[1754910526448,0.4476302,121080.0,121070.0,0.6951906]
[1754910526747,1.2255102,121080.0,121070.0,0.50309149]
[1754910527733,0.8647102,121080.0,121070.0,0.50309149]
[1754910527933,0.0868302,121080.0,121070.0,0.50309149]
[1754910528133,0.8646702,121080.0,121070.0,0.50309149]
[1754910528349,0.8646702,121080.0,121070.0,0.50409149]
[1754910528748,0.8646702,121080.0,121070.0,0.58669849]
[1754910529135,0.8646702,121080.0,121070.0,0.50409149]
[1754910529335,0.0847302,121080.0,121070.0,0.8241546]
[1754910529540,0.77794,121080.0,121070.0,1.36165554]
[1754910529746,0.0001,121080.0,121070.0,1.72245554]
[1754910530445,0.7779,121080.0,121070.0,1.72245554]
[1754910530744,0.7779,121080.0,121070.0,1.5302751]
[1754910531050,0.8605002,121080.0,121070.0,1.5302751]
[1754910531242,0.8605002,121080.0,121070.0,1.29281899]
[1754910534246,0.0827002,121080.0,121070.0,1.29281899]
[1754910535350,0.0001,121080.0,121070.0,1.29281899]
[1754910535549,0.77782,121080.0,121070.0,1.29281899]
[1754910536251,0.77782,121080.0,121070.0,1.24214047]
[1754910536652,2.3604203,121080.0,121070.0,1.24214047]
[1754910536957,2.3603803,121080.0,121070.0,1.24214047]
[1754910539041,2.27842,121080.0,121070.0,1.24214047]
[1754910539453,2.27778,121080.0,121070.0,1.24214047]
[1754910540355,1.5001,121080.0,121070.0,1.24214047]
[1754910540652,0.0825945,121090.0,121070.0,2.47945195]
[1754910540851,0.75706888,121110.0,121090.0,0.3303632]
[1754910541051,1.45394228,121110.0,121100.0,0.59211858]
[1754910541249,0.67638228,121110.0,121100.0,0.3465066]
[1754910541451,1.09314228,121110.0,121100.0,0.63870676]
[1754910541648,0.31558228,121110.0,121100.0,0.63870676]
[1754910541850,1.09324228,121110.0,121100.0,0.63880676]
[1754910542447,0.67648228,121110.0,121100.0,0.34084016]
[1754910542653,1.799241,121110.0,121100.0,0.34084016]
[1754910542853,1.799241,121110.0,121100.0,0.29230016]
[1754910543550,1.936301,121110.0,121100.0,0.29230016]
[1754910543752,1.802201,121110.0,121100.0,0.34084016]
[1754910543953,1.45696228,121110.0,121100.0,0.34084016]
[1754910544457,1.09516228,121110.0,121100.0,0.34084016]
[1754910544655,1.45796228,121110.0,121100.0,0.42342676]
[1754910544959,1.45796228,121110.0,121100.0,0.6604416]
[1754910545456,1.45596228,121110.0,121100.0,0.6604416]
[1754910545653,1.45696228,121110.0,121100.0,0.577855]
[1754910545852,0.67948228,121110.0,121100.0,0.577855]
[1754910546059,1.45692228,121110.0,121100.0,0.577855]
[1754910546759,1.45692228,121110.0,121100.0,0.6604416]
[1754910547358,1.45692228,121110.0,121100.0,0.577855]
[1754910547757,0.67948228,121110.0,121100.0,0.577855]
[1754910548060,1.45688228,121110.0,121100.0,0.577855]
[1754910548961,1.45684228,121110.0,121100.0,0.44325823]
[1754910549261,1.802081,121110.0,121100.0,0.44325823]
[1754910550063,1.802081,121110.0,121100.0,0.49179823]
[1754910550462,1.802041,121110.0,121100.0,0.3606648]
[1754910550658,1.024721,121110.0,121100.0,0.3606648]
[1754910550963,1.802041,121110.0,121100.0,0.12364996]
[1754910551363,1.024721,121110.0,121100.0,0.12364996]
[1754910551564,1.802001,121110.0,121100.0,0.12364996]
[1754910552263,1.024721,121110.0,121100.0,0.12364996]
[1754910552464,1.802001,121110.0,121100.0,0.17218996]
[1754910552664,1.024721,121110.0,121100.0,0.17218996]
[1754910552866,1.802001,121110.0,121100.0,0.17218996]
[1754910554169,1.024721,121110.0,121100.0,0.17218996]
[1754910554368,1.801961,121110.0,121100.0,0.17218996]
[1754910554563,1.801961,121110.0,121100.0,0.12364996]
[1754910554864,0.0826002,121080.0,121070.0,0.2074996]
[1754910555165,1.2237302,121080.0,121070.0,0.45149302]
[1754910555464,1.2237302,121080.0,121070.0,0.55826943]
[1754910555670,0.4464902,121080.0,121070.0,0.55826943]
[1754910555962,0.0857902,121080.0,121070.0,0.55836943]
[1754910556165,0.8629902,121080.0,121070.0,0.85460351]
[1754910556562,0.8629902,121080.0,121070.0,0.85760351]
[1754910557065,1.2237902,121080.0,121070.0,0.85860351]
[1754910557369,0.8629902,121080.0,121070.0,0.85860351]
[1754910557968,1.2237902,121080.0,121070.0,0.85760351]
[1754910558169,0.8629902,121080.0,121070.0,0.85760351]
[1754910558669,1.2237902,121080.0,121070.0,0.85760351]
[1754910559170,0.8629902,121080.0,121070.0,0.85560351]
[1754910559567,1.2237902,121080.0,121070.0,0.85560351]
[1754910559868,0.4465902,121080.0,121070.0,0.85560351]
[1754910560068,1.2237502,121080.0,121070.0,0.85560351]
[1754910562170,1.56898892,121080.0,121070.0,0.36318601]
[1754910562360,1.2237502,121080.0,121070.0,0.36318601]
[1754910562763,1.56898892,121080.0,121070.0,0.36318601]
[1754910563470,1.2237502,121080.0,121070.0,0.65987548]
[1754910563972,1.2237502,121080.0,121070.0,0.55279548]
[1754910563973,0.79182892,121080.0,121070.0,0.55279548]
[1754910564171,1.51855664,121080.0,121070.0,0.55279548]
[1754910564576,1.51855664,121080.0,121070.0,0.46814251]
[1754910564970,1.51851664,121080.0,121070.0,0.46814251]
[1754910565574,1.51851664,121080.0,121070.0,0.17145304]
[1754910566371,1.51851664,121080.0,121070.0,0.38234304]
[1754910567662,1.51847664,121080.0,121070.0,0.38234304]
[1754910568768,1.65557664,121080.0,121070.0,0.38234304]
[1754910568973,1.65557664,121080.0,121070.0,0.33423304]
[1754910569577,1.65557664,121080.0,121070.0,0.27545304]
[1754910570076,1.65557664,121080.0,121070.0,0.33423304]
[1754910570375,1.65557664,121080.0,121070.0,0.38234304]
[1754910572875,1.65557664,121080.0,121070.0,0.33423304]
[1754910573070,1.65553664,121080.0,121070.0,0.23704304]
[1754910573277,1.65553664,121080.0,121070.0,0.47416672]
[1754910574985,2.11548708,121080.0,121070.0,0.36211672]
[1754910575180,2.11548708,121080.0,121070.0,0.12499304]
[1754910575381,1.5257942,121080.0,121070.0,0.12499304]
[1754910575579,2.11548708,121080.0,121070.0,0.17145304]
[1754910575976,1.33856708,121080.0,121070.0,0.17145304]
[1754910576180,1.85470064,121080.0,121070.0,0.17145304]
[1754910577291,1.85470064,121080.0,121070.0,0.40857672]
[1754910578992,1.68951664,121080.0,121070.0,0.47981672]
[1754910579196,1.68951664,121080.0,121070.0,0.61946672]
[1754910579791,1.68951664,121080.0,121070.0,0.51257672]
[1754910580092,1.68951664,121080.0,121070.0,0.47416672]
[1754910580397,1.68951664,121080.0,121070.0,0.40857672]
[1754910580989,1.98436308,121080.0,121070.0,0.40857672]
[1754910581300,1.68951664,121080.0,121070.0,0.40857672]
[1754910583900,1.98436308,121080.0,121070.0,0.40857672]
[1754910584097,1.98436308,121080.0,121070.0,0.37167372]
[1754910584291,1.17337151,121080.0,121070.0,0.04730826]
[1754910584499,2.11519551,121080.0,121070.0,6e-08]
[1754910584803,0.0826139,121060.0,121050.0,0.00092]
[1754910585000,1.87570034,121060.0,121050.0,0.00092]
[1754910585205,1.5808539,121060.0,121050.0,0.12526409]
[1754910585501,1.87570034,121060.0,121050.0,0.12526409]
[1754910585706,1.87580034,121060.0,121050.0,0.17182409]
[1754910586000,1.87580034,121060.0,121050.0,0.17282409]
[1754910586402,1.87580034,121060.0,121050.0,0.17482409]
[1754910587102,1.87589034,121060.0,121050.0,0.17482409]
[1754910587802,1.09925034,121060.0,121050.0,0.39108409]
[1754910588002,1.5810039,121060.0,121050.0,0.39108409]
[1754910588508,1.87585034,121060.0,121050.0,0.39108409]
[1754910589004,1.87585034,121060.0,121050.0,0.47369116]
[1754910589402,0.8043139,121060.0,121050.0,0.47369116]
[1754910589601,0.0827139,121060.0,121050.0,0.85892638]
[1754910589805,0.8592339,121060.0,121050.0,0.85892638]
[1754910590013,0.8592339,121060.0,121050.0,0.56407994]
[1754910590402,0.8592839,121060.0,121050.0,0.56407994]
[1754910591010,0.8592339,121060.0,121050.0,0.56407994]
[1754910591208,0.8592339,121060.0,121050.0,0.94154708]
[1754910591611,0.8592339,121060.0,121050.0,0.85892638]
[1754910592011,0.8592339,121060.0,121050.0,0.56407994]
[1754910592206,0.8592339,121060.0,121050.0,0.64670064]
[1754910592413,0.77652,121060.0,121050.0,1.71033919]
[1754910592707,0.53475529,121060.0,121050.0,1.71033919]
[1754910592912,0.16529323,121080.0,121070.0,0.082607]
[1754910593209,0.27065323,121080.0,121070.0,0.2617]
[1754910593405,1.86094967,121080.0,121070.0,0.32405186]
[1754910593704,1.08450967,121080.0,121070.0,0.46783932]
[1754910593900,2.15589611,121080.0,121070.0,0.12363225]
[1754910594308,1.37945611,121080.0,121070.0,0.31646125]
[1754910594509,2.29399611,121080.0,121070.0,0.31646125]
[1754910594713,2.29395611,121080.0,121070.0,0.31646125]
[1754910595211,2.45914011,121080.0,121070.0,0.31646125]
[1754910595407,1.68274011,121080.0,121070.0,0.31646125]
[1754910595610,2.45914011,121080.0,121070.0,0.31647848]
[1754910595816,2.45914011,121080.0,121070.0,0.27248458]
[1754910596112,2.45914011,121080.0,121060.0,0.23736026]
[1754910596113,0.253807,121070.0,121060.0,0.23736026]
[1754910596307,1.16301344,121070.0,121060.0,0.23736026]
[1754910596514,0.0826139,121060.0,121050.0,0.04756]
[1754910596703,3.26814034,121060.0,121050.0,0.26262]
[1754910596912,3.26814034,121060.0,121050.0,0.38679445]
[1754910597209,3.26824034,121060.0,121050.0,0.38689445]
[1754910597411,3.26824034,121060.0,121050.0,0.23618445]
[1754910597612,3.26824034,121060.0,121050.0,0.17183445]
[1754910598712,3.26824034,121060.0,121050.0,0.38689445]
[1754910599414,3.26824034,121060.0,121050.0,0.38889445]
[1754910600018,3.26824034,121060.0,121050.0,0.38789445]
[1754910600218,2.1588639,121060.0,121050.0,0.38789445]
[1754910600414,2.1588639,121060.0,121050.0,0.70786178]
[1754910600618,2.9350639,121060.0,121050.0,0.70786178]
[1754910600811,3.22991034,121060.0,121050.0,0.70786178]
[1754910601620,2.1588639,121060.0,121050.0,0.70786178]
[1754910601815,3.22991034,121060.0,121050.0,0.70786178]
[1754910602307,3.26812034,121060.0,121050.0,0.70786178]
[1754910602511,3.26812034,121060.0,121050.0,0.47050152]
[1754910603221,2.45371034,121060.0,121050.0,0.47050152]
[1754910603420,3.22987034,121060.0,121050.0,0.47050152]
[1754910603612,2.1588639,121060.0,121050.0,0.47050152]
[1754910603818,2.9349839,121060.0,121050.0,0.47050152]
[1754910605011,3.22983034,121060.0,121050.0,0.47050152]
[1754910605216,2.9349839,121060.0,121050.0,0.47050152]
[1754910605417,2.9349839,121060.0,121050.0,0.55946898]
[1754910608621,2.9349839,121060.0,121050.0,0.79682924]
[1754910608922,2.9731939,121060.0,121050.0,0.79682924]
[1754910609222,2.9730339,121060.0,121050.0,0.79682924]
[1754910609917,3.26788034,121060.0,121050.0,0.70786178]
[1754910610123,2.9730339,121060.0,121050.0,0.44616178]
[1754910610315,2.1970739,121060.0,121050.0,0.44616178]
[1754910610520,3.26784034,121060.0,121050.0,0.25544152]
[1754910611024,3.26784034,121060.0,121050.0,0.44622296]
[1754910611219,2.49192034,121060.0,121050.0,0.49286296]
[1754910611419,3.26780034,121060.0,121050.0,0.49286296]
[1754910612824,3.26780034,121060.0,121050.0,0.55169296]
[1754910613727,3.26780034,121060.0,121050.0,0.49286296]
[1754910614421,3.26772034,121060.0,121050.0,0.36361589]
[1754910614620,2.49192034,121060.0,121050.0,0.36361589]
[1754910614815,3.26768034,121060.0,121050.0,0.36361589]
[1754910615424,3.40478034,121060.0,121050.0,0.36361589]
[1754910615627,0.0826275,121040.0,121030.0,0.34332947]
[1754910615817,1.51406394,121040.0,121030.0,0.04664]
[1754910616124,1.51410394,121040.0,121030.0,0.25347686]
[1754910616530,1.51410394,121040.0,121030.0,0.42742686]
[1754910617119,1.51781394,121040.0,121030.0,0.31782686]
[1754910617313,1.51781394,121040.0,121030.0,0.32392686]
[1754910617314,1.51891394,121040.0,121030.0,0.32392686]
[1754910618331,1.5850144,121040.0,121030.0,0.32392686]
[1754910618629,1.7221144,121040.0,121030.0,0.25824686]